[Event "*** Titled Tuesday Blitz"]
[Site "Chess.com"]
[Date "2021.04.20"]
[Round "9"]
[White "Aradhya2000"]
[Black "vinniethepooh"]
[Result "1-0"]
[WhiteElo "2631"]
[BlackElo "2734"]
[TimeControl "180+1"]
[EndTime "11:46:15 PDT"]
[Termination "Aradhya2000 won by checkmate"]

1. d4 {[%clk 0:03:00.9]} 1... d5 {[%clk 0:02:59.8]} 2. c4 {[%clk 0:03:00.1]}
2... c6 {[%clk 0:03:00.5]} 3. Nf3 {[%clk 0:02:59.4]} 3... Nf6 {[%clk 0:03:01]}
4. Nc3 {[%clk 0:02:59.9]} 4... e6 {[%clk 0:03:01]} 5. e3 {[%clk 0:03:00.3]} 5...
Nbd7 {[%clk 0:03:01.2]} 6. Nd2 {[%clk 0:03:00.5]} 6... Bb4 {[%clk 0:02:54]} 7.
g3 {[%clk 0:03:00]} 7... O-O {[%clk 0:02:52.6]} 8. Bg2 {[%clk 0:02:59.9]} 8...
e5 {[%clk 0:02:41.3]} 9. O-O {[%clk 0:02:58.7]} 9... exd4 {[%clk 0:02:30.3]} 10.
exd4 {[%clk 0:02:59.6]} 10... Nb6 {[%clk 0:02:18.1]} 11. c5 {[%clk 0:02:55.1]}
11... Nbd7 {[%clk 0:02:18.1]} 12. Nb3 {[%clk 0:02:47.2]} 12... b6 {[%clk
0:02:04]} 13. Bf4 {[%clk 0:02:46.3]} 13... bxc5 {[%clk 0:01:46.6]} 14. Bd6
{[%clk 0:02:45.5]} 14... Re8 {[%clk 0:01:47.2]} 15. dxc5 {[%clk 0:02:45.2]}
15... Ba6 {[%clk 0:01:28.1]} 16. Re1 {[%clk 0:02:44.6]} 16... Rxe1+ {[%clk
0:01:25.6]} 17. Qxe1 {[%clk 0:02:45.5]} 17... Bc4 {[%clk 0:01:26.5]} 18. Nd2
{[%clk 0:02:27.2]} 18... Bxc5 {[%clk 0:01:11.6]} 19. Nxc4 {[%clk 0:02:26]} 19...
dxc4 {[%clk 0:01:10.2]} 20. Bxc5 {[%clk 0:02:25.7]} 20... Nxc5 {[%clk
0:01:10.6]} 21. Rd1 {[%clk 0:02:25.5]} 21... Nd3 {[%clk 0:01:07.4]} 22. Qe2
{[%clk 0:02:14.7]} 22... Qb6 {[%clk 0:01:05.8]} 23. b3 {[%clk 0:02:11.9]} 23...
Re8 {[%clk 0:01:06]} 24. Qd2 {[%clk 0:01:57.1]} 24... Ng4 {[%clk 0:01:05.7]} 25.
Ne4 {[%clk 0:01:57]} 25... f5 {[%clk 0:01:00.4]} 26. h3 {[%clk 0:01:41.7]} 26...
fxe4 {[%clk 0:00:56.5]} 27. hxg4 {[%clk 0:01:41.5]} 27... c3 {[%clk 0:00:41.2]}
28. Qxc3 {[%clk 0:01:28.3]} 28... Qxf2+ {[%clk 0:00:41]} 29. Kh2 {[%clk
0:01:28.2]} 29... Re6 {[%clk 0:00:23.5]} 30. Qc4 {[%clk 0:01:26.9]} 30... Qf7
{[%clk 0:00:23.9]} 31. Bxe4 {[%clk 0:01:20.1]} 31... Rh6+ {[%clk 0:00:11.1]} 32.
Kg2 {[%clk 0:01:17.3]} 32... Qxc4 {[%clk 0:00:11.5]} 33. bxc4 {[%clk 0:01:16.8]}
33... Ne5 {[%clk 0:00:11.4]} 34. c5 {[%clk 0:01:15.6]} 34... Re6 {[%clk
0:00:10.3]} 35. Bf5 {[%clk 0:01:14.2]} 35... Re7 {[%clk 0:00:09.9]} 36. Rd6
{[%clk 0:01:12.4]} 36... g6 {[%clk 0:00:09.6]} 37. Be4 {[%clk 0:01:11.7]} 37...
Nxg4 {[%clk 0:00:06.6]} 38. Bxc6 {[%clk 0:01:11.7]} 38... Ne3+ {[%clk
0:00:07.1]} 39. Kf3 {[%clk 0:01:10.2]} 39... Nf5 {[%clk 0:00:07.7]} 40. Rd3
{[%clk 0:00:46.4]} 40... Rc7 {[%clk 0:00:07.5]} 41. Bd5+ {[%clk 0:00:45.5]}
41... Kf8 {[%clk 0:00:08.1]} 42. c6 {[%clk 0:00:45.4]} 42... Ne7 {[%clk
0:00:08.6]} 43. Ke4 {[%clk 0:00:36.6]} 43... Nxc6 {[%clk 0:00:08.7]} 44. Rc3
{[%clk 0:00:35.6]} 44... Re7+ {[%clk 0:00:08.7]} 45. Kf4 {[%clk 0:00:35.9]}
45... Ne5 {[%clk 0:00:07.8]} 46. a4 {[%clk 0:00:33.7]} 46... Nd7 {[%clk
0:00:06.7]} 47. Rc8+ {[%clk 0:00:29.4]} 47... Re8 {[%clk 0:00:05.4]} 48. Rc7
{[%clk 0:00:29.1]} 48... Nf6 {[%clk 0:00:05.9]} 49. Rf7+ {[%clk 0:00:28.3]}
49... Kg8 {[%clk 0:00:05.1]} 50. Rxf6+ {[%clk 0:00:28.6]} 50... Kg7 {[%clk
0:00:05.7]} 51. Rf7+ {[%clk 0:00:28.7]} 51... Kh6 {[%clk 0:00:06.3]} 52. Rxa7
{[%clk 0:00:26.7]} 52... Rf8+ {[%clk 0:00:06.4]} 53. Ke3 {[%clk 0:00:22.5]}
53... Kg5 {[%clk 0:00:06.4]} 54. Bf3 {[%clk 0:00:21.9]} 54... h5 {[%clk
0:00:05.9]} 55. Ra5+ {[%clk 0:00:21.4]} 55... Kf6 {[%clk 0:00:05.9]} 56. Rb5
{[%clk 0:00:21.3]} 56... Re8+ {[%clk 0:00:06.2]} 57. Kf4 {[%clk 0:00:19.8]}
57... Rd8 {[%clk 0:00:03.1]} 58. Rb6+ {[%clk 0:00:19.8]} 58... Kf7 {[%clk
0:00:03.3]} 59. Ke5 {[%clk 0:00:19.1]} 59... Rd3 {[%clk 0:00:03.5]} 60. Bd5+
{[%clk 0:00:18.4]} 60... Kg7 {[%clk 0:00:03.7]} 61. Rb7+ {[%clk 0:00:18.4]}
61... Kh6 {[%clk 0:00:03.6]} 62. Rb3 {[%clk 0:00:18.5]} 62... Rd2 {[%clk
0:00:02.2]} 63. a5 {[%clk 0:00:17.8]} 63... Ra2 {[%clk 0:00:02.6]} 64. Rb5
{[%clk 0:00:16.6]} 64... Ra1 {[%clk 0:00:03.2]} 65. Kf6 {[%clk 0:00:15.1]} 65...
Rf1+ {[%clk 0:00:02.8]} 66. Ke5 {[%clk 0:00:15.1]} 66... Ra1 {[%clk 0:00:03.4]}
67. Bb7 {[%clk 0:00:14.3]} 67... Kg5 {[%clk 0:00:03.6]} 68. a6 {[%clk
0:00:13.3]} 68... Kg4 {[%clk 0:00:04.1]} 69. Rb3 {[%clk 0:00:13.5]} 69... g5
{[%clk 0:00:04.5]} 70. Bc8# {[%clk 0:00:13.5]} 1-0

[Event "*** Titled Tuesday Blitz"]
[Site "Chess.com"]
[Date "2021.04.20"]
[Round "9"]
[White "DamianoLew95"]
[Black "olksuna"]
[Result "0-1"]
[WhiteElo "2514"]
[BlackElo "2653"]
[TimeControl "180+1"]
[EndTime "11:46:17 PDT"]
[Termination "olksuna won on time"]

1. d4 {[%clk 0:03:00.9]} 1... Nf6 {[%clk 0:02:59.5]} 2. Bf4 {[%clk 0:03:00.9]}
2... e6 {[%clk 0:02:58.8]} 3. e3 {[%clk 0:03:00.9]} 3... b6 {[%clk 0:02:58.7]}
4. Qf3 {[%clk 0:03:00.2]} 4... d5 {[%clk 0:02:50.3]} 5. Nd2 {[%clk 0:02:58.7]}
5... Be7 {[%clk 0:02:47.9]} 6. Bd3 {[%clk 0:02:57.9]} 6... Ba6 {[%clk
0:02:44.3]} 7. Bxa6 {[%clk 0:02:51.2]} 7... Nxa6 {[%clk 0:02:45.2]} 8. c3 {[%clk
0:02:51.8]} 8... c5 {[%clk 0:02:43.1]} 9. Ne2 {[%clk 0:02:48.5]} 9... O-O {[%clk
0:02:42.7]} 10. O-O {[%clk 0:02:45.4]} 10... Nc7 {[%clk 0:02:37]} 11. a4 {[%clk
0:02:31.3]} 11... a5 {[%clk 0:02:33.4]} 12. e4 {[%clk 0:02:16.6]} 12... dxe4
{[%clk 0:02:29.3]} 13. Nxe4 {[%clk 0:02:15.4]} 13... Nxe4 {[%clk 0:02:24.7]} 14.
Qxe4 {[%clk 0:02:16.3]} 14... Nd5 {[%clk 0:02:24.5]} 15. Bg3 {[%clk 0:02:04.5]}
15... Qc8 {[%clk 0:02:19.9]} 16. Nf4 {[%clk 0:01:58.2]} 16... Rd8 {[%clk
0:02:08.6]} 17. Nxd5 {[%clk 0:01:57.3]} 17... Rxd5 {[%clk 0:02:06.6]} 18. dxc5
{[%clk 0:01:55.7]} 18... Qxc5 {[%clk 0:02:03.8]} 19. Rfd1 {[%clk 0:01:47.4]}
19... Rad8 {[%clk 0:02:03.3]} 20. Rxd5 {[%clk 0:01:45.7]} 20... Rxd5 {[%clk
0:01:57.8]} 21. h3 {[%clk 0:01:41.8]} 21... h5 {[%clk 0:01:57.6]} 22. Qe2 {[%clk
0:01:35.6]} 22... h4 {[%clk 0:01:54]} 23. Bf4 {[%clk 0:01:35]} 23... Bd6 {[%clk
0:01:42.8]} 24. Be3 {[%clk 0:01:29]} 24... Qc6 {[%clk 0:01:31.1]} 25. Kf1 {[%clk
0:01:11.7]} 25... Be7 {[%clk 0:01:15.3]} 26. c4 {[%clk 0:01:08.6]} 26... Rd8
{[%clk 0:01:08.4]} 27. b3 {[%clk 0:01:05.1]} 27... Bc5 {[%clk 0:00:59.4]} 28.
Bg5 {[%clk 0:00:52.9]} 28... Rd4 {[%clk 0:00:51.9]} 29. Be3 {[%clk 0:00:38.2]}
29... Rd7 {[%clk 0:00:43.1]} 30. Rd1 {[%clk 0:00:34.5]} 30... Bxe3 {[%clk
0:00:36.2]} 31. fxe3 {[%clk 0:00:32]} 31... Qc7 {[%clk 0:00:25.1]} 32. Rd3
{[%clk 0:00:27.3]} 32... Qd8 {[%clk 0:00:24.2]} 33. Rxd7 {[%clk 0:00:24.4]}
33... Qxd7 {[%clk 0:00:25.1]} 34. Kf2 {[%clk 0:00:21.5]} 34... Qd6 {[%clk
0:00:21.9]} 35. Qc2 {[%clk 0:00:16.5]} 35... Qg3+ {[%clk 0:00:20.3]} 36. Kf1
{[%clk 0:00:14.8]} 36... Qxe3 {[%clk 0:00:20.4]} 37. Qd1 {[%clk 0:00:14]} 37...
Qf4+ {[%clk 0:00:18.3]} 38. Kg1 {[%clk 0:00:12.5]} 38... Qe3+ {[%clk 0:00:14.5]}
39. Kf1 {[%clk 0:00:12.6]} 39... g6 {[%clk 0:00:14.8]} 40. Qd8+ {[%clk
0:00:10.7]} 40... Kg7 {[%clk 0:00:14.7]} 41. Qxh4 {[%clk 0:00:10.6]} 41... Qxb3
{[%clk 0:00:13.9]} 42. Qd4+ {[%clk 0:00:10.6]} 42... Kh7 {[%clk 0:00:12.3]} 43.
Qh4+ {[%clk 0:00:10.5]} 43... Kg8 {[%clk 0:00:10.7]} 44. Qd8+ {[%clk 0:00:10.4]}
44... Kg7 {[%clk 0:00:11]} 45. Qd4+ {[%clk 0:00:10.2]} 45... f6 {[%clk
0:00:11.2]} 46. Qd7+ {[%clk 0:00:08.6]} 46... Kh6 {[%clk 0:00:11.3]} 47. Qxe6
{[%clk 0:00:09]} 47... Qxa4 {[%clk 0:00:07.9]} 48. Kg1 {[%clk 0:00:09.2]} 48...
Qd1+ {[%clk 0:00:07.1]} 49. Kh2 {[%clk 0:00:08.4]} 49... Qd4 {[%clk 0:00:08]}
50. Qf7 {[%clk 0:00:06.4]} 50... Qe5+ {[%clk 0:00:08.9]} 51. g3 {[%clk
0:00:06.7]} 51... Qe2+ {[%clk 0:00:08.5]} 52. Kg1 {[%clk 0:00:06.9]} 52... Qe1+
{[%clk 0:00:05.8]} 53. Kg2 {[%clk 0:00:07.2]} 53... Qd2+ {[%clk 0:00:06.1]} 54.
Kg1 {[%clk 0:00:07.5]} 54... Qd4+ {[%clk 0:00:06.3]} 55. Kg2 {[%clk 0:00:07.1]}
55... Qe4+ {[%clk 0:00:06]} 56. Kg1 {[%clk 0:00:07.1]} 56... Qe5 {[%clk
0:00:06]} 57. Kg2 {[%clk 0:00:07]} 57... a4 {[%clk 0:00:05.4]} 58. Qf8+ {[%clk
0:00:05.7]} 58... Kg5 {[%clk 0:00:05.2]} 59. Qc8 {[%clk 0:00:04.5]} 59... Qe2+
{[%clk 0:00:04.7]} 60. Kg1 {[%clk 0:00:04.7]} 60... Qe3+ {[%clk 0:00:05]} 61.
Kg2 {[%clk 0:00:04.9]} 61... Qe4+ {[%clk 0:00:05.2]} 62. Kg1 {[%clk 0:00:05.3]}
62... Qd4+ {[%clk 0:00:05.3]} 63. Kg2 {[%clk 0:00:05.7]} 63... f5 {[%clk
0:00:04.4]} 64. h4+ {[%clk 0:00:05.4]} 64... Kg4 {[%clk 0:00:04.8]} 65. Qc7
{[%clk 0:00:04.7]} 65... Qd2+ {[%clk 0:00:03.9]} 66. Kg1 {[%clk 0:00:04.9]}
66... Kh3 {[%clk 0:00:04]} 67. Kf1 {[%clk 0:00:02.2]} 67... a3 {[%clk
0:00:04.2]} 0-1

[Event "*** Titled Tuesday Blitz"]
[Site "Chess.com"]
[Date "2021.04.20"]
[Round "9"]
[White "Nils_03"]
[Black "deribas12345"]
[Result "0-1"]
[WhiteElo "2396"]
[BlackElo "2543"]
[TimeControl "180+1"]
[EndTime "11:46:17 PDT"]
[Termination "deribas12345 won on time"]

1. d4 {[%clk 0:03:00.9]} 1... Nf6 {[%clk 0:02:59.3]} 2. c4 {[%clk 0:03:01.1]}
2... c5 {[%clk 0:02:59.2]} 3. d5 {[%clk 0:03:00.4]} 3... b5 {[%clk 0:02:59.8]}
4. cxb5 {[%clk 0:03:00.7]} 4... a6 {[%clk 0:03:00.2]} 5. bxa6 {[%clk 0:03:01.1]}
5... Bxa6 {[%clk 0:03:00.8]} 6. Nf3 {[%clk 0:03:01.1]} 6... d6 {[%clk
0:03:01.2]} 7. Nc3 {[%clk 0:02:59.6]} 7... g6 {[%clk 0:03:01.5]} 8. g3 {[%clk
0:02:59.9]} 8... Bg7 {[%clk 0:03:00.2]} 9. Bg2 {[%clk 0:03:00.3]} 9... O-O
{[%clk 0:03:01.1]} 10. Rb1 {[%clk 0:03:00.6]} 10... Nbd7 {[%clk 0:03:01.7]} 11.
O-O {[%clk 0:03:00.8]} 11... Ne8 {[%clk 0:03:02.2]} 12. Qc2 {[%clk 0:02:56.1]}
12... Nc7 {[%clk 0:03:00.4]} 13. Re1 {[%clk 0:02:55.9]} 13... Nb5 {[%clk
0:03:00]} 14. Nxb5 {[%clk 0:02:51.5]} 14... Bxb5 {[%clk 0:03:00.9]} 15. b3
{[%clk 0:02:46.6]} 15... Qa5 {[%clk 0:02:56.7]} 16. a4 {[%clk 0:02:43.9]} 16...
Ba6 {[%clk 0:02:56.4]} 17. Bd2 {[%clk 0:02:39.6]} 17... Qb6 {[%clk 0:02:56.4]}
18. Bc3 {[%clk 0:02:38.1]} 18... Bxc3 {[%clk 0:02:55.8]} 19. Qxc3 {[%clk
0:02:39]} 19... Rfb8 {[%clk 0:02:52.4]} 20. Nd2 {[%clk 0:02:37.4]} 20... Qb4
{[%clk 0:02:51.5]} 21. Qe3 {[%clk 0:02:27.6]} 21... Ra7 {[%clk 0:02:36.2]} 22.
Be4 {[%clk 0:02:12.5]} 22... Nf6 {[%clk 0:02:33.7]} 23. Bf3 {[%clk 0:02:09.8]}
23... Bc8 {[%clk 0:02:11.8]} 24. Rbc1 {[%clk 0:01:52.7]} 24... Bf5 {[%clk
0:02:06.2]} 25. Rc4 {[%clk 0:01:52.3]} 25... Qa5 {[%clk 0:02:05]} 26. g4 {[%clk
0:01:46.5]} 26... Bc8 {[%clk 0:01:54.1]} 27. Rec1 {[%clk 0:01:43.2]} 27... Rb4
{[%clk 0:01:38.4]} 28. Rxb4 {[%clk 0:01:29.7]} 28... Qxb4 {[%clk 0:01:38.2]} 29.
Rc4 {[%clk 0:01:30.1]} 29... Qa3 {[%clk 0:01:33.7]} 30. g5 {[%clk 0:01:28]}
30... Ne8 {[%clk 0:01:25.5]} 31. Kg2 {[%clk 0:01:20.6]} 31... Qa1 {[%clk
0:01:23.5]} 32. Qc3 {[%clk 0:01:17]} 32... Qxc3 {[%clk 0:01:20.7]} 33. Rxc3
{[%clk 0:01:16.8]} 33... Ba6 {[%clk 0:01:20.7]} 34. h4 {[%clk 0:01:11.2]} 34...
Nc7 {[%clk 0:01:16.9]} 35. Kf1 {[%clk 0:01:04.6]} 35... Rb7 {[%clk 0:01:16.3]}
36. Be4 {[%clk 0:00:55.5]} 36... Rb4 {[%clk 0:01:14.3]} 37. f3 {[%clk
0:00:55.1]} 37... f5 {[%clk 0:01:11.4]} 38. gxf6 {[%clk 0:00:55.1]} 38... exf6
{[%clk 0:01:11.7]} 39. h5 {[%clk 0:00:52.9]} 39... f5 {[%clk 0:01:11.2]} 40. Bd3
{[%clk 0:00:50.9]} 40... Nxd5 {[%clk 0:01:10.2]} 41. Rc1 {[%clk 0:00:37.5]}
41... Bxd3 {[%clk 0:00:58.3]} 42. exd3 {[%clk 0:00:38.4]} 42... gxh5 {[%clk
0:00:57.5]} 43. Ra1 {[%clk 0:00:34.8]} 43... Kf7 {[%clk 0:00:52.2]} 44. a5
{[%clk 0:00:34.7]} 44... Nc7 {[%clk 0:00:52.5]} 45. a6 {[%clk 0:00:33.1]} 45...
d5 {[%clk 0:00:46.4]} 46. a7 {[%clk 0:00:32.4]} 46... Na8 {[%clk 0:00:46.6]} 47.
Ke2 {[%clk 0:00:30.5]} 47... h4 {[%clk 0:00:42.7]} 48. Rh1 {[%clk 0:00:26.4]}
48... Kf6 {[%clk 0:00:31.5]} 49. Kf2 {[%clk 0:00:21.4]} 49... Rb7 {[%clk
0:00:31]} 50. Ra1 {[%clk 0:00:20.8]} 50... Rg7 {[%clk 0:00:29.6]} 51. Ra6+
{[%clk 0:00:18.9]} 51... Ke5 {[%clk 0:00:28.7]} 52. Ke3 {[%clk 0:00:17.1]} 52...
f4+ {[%clk 0:00:25.8]} 53. Kf2 {[%clk 0:00:16.8]} 53... Kd4 {[%clk 0:00:22.5]}
54. Nf1 {[%clk 0:00:16]} 54... h3 {[%clk 0:00:21]} 55. Rd6 {[%clk 0:00:15]}
55... Rg2+ {[%clk 0:00:17.3]} 56. Ke1 {[%clk 0:00:14.9]} 56... Rg1 {[%clk
0:00:14.4]} 57. Rh6 {[%clk 0:00:14.2]} 57... Rg7 {[%clk 0:00:12.6]} 58. Rxh3
{[%clk 0:00:11.9]} 58... Rxa7 {[%clk 0:00:11.6]} 59. Rh4 {[%clk 0:00:11.7]}
59... Kxd3 {[%clk 0:00:11.7]} 60. Rxf4 {[%clk 0:00:11.2]} 60... Ra1+ {[%clk
0:00:11.6]} 61. Kf2 {[%clk 0:00:11.2]} 61... Nb6 {[%clk 0:00:11.4]} 62. Rf7
{[%clk 0:00:10.4]} 62... c4 {[%clk 0:00:10.3]} 63. bxc4 {[%clk 0:00:10.2]} 63...
dxc4 {[%clk 0:00:10.7]} 64. Rxh7 {[%clk 0:00:10.3]} 64... c3 {[%clk 0:00:11.2]}
65. Ng3 {[%clk 0:00:08]} 65... Ra2+ {[%clk 0:00:07.8]} 66. Kf1 {[%clk 0:00:06]}
66... Nc4 {[%clk 0:00:07.8]} 67. Rd7+ {[%clk 0:00:05]} 67... Ke3 {[%clk
0:00:08.2]} 68. Ne4 {[%clk 0:00:01.7]} 68... Nd2+ {[%clk 0:00:07.1]} 0-1

[Event "*** Titled Tuesday Blitz"]
[Site "Chess.com"]
[Date "2021.04.20"]
[Round "9"]
[White "SanchezKelvin"]
[Black "kai_nov"]
[Result "1/2-1/2"]
[WhiteElo "148"]
[BlackElo "2313"]
[TimeControl "180+1"]
[EndTime "11:46:19 PDT"]
[Termination "Game drawn by agreement"]

1. d4 {[%clk 0:02:43.9]} 1... d5 {[%clk 0:02:59.5]} 2. c4 {[%clk 0:02:43.6]}
2... e6 {[%clk 0:02:59.3]} 3. Nf3 {[%clk 0:02:42.8]} 3... c6 {[%clk 0:02:59.2]}
4. Nc3 {[%clk 0:02:42.6]} 4... dxc4 {[%clk 0:02:58.4]} 5. a4 {[%clk 0:02:41.4]}
5... Bb4 {[%clk 0:02:55.6]} 6. e3 {[%clk 0:02:41.2]} 6... b5 {[%clk 0:02:53.1]}
7. Ne5 {[%clk 0:02:41.5]} 7... Nf6 {[%clk 0:02:47.1]} 8. Be2 {[%clk 0:02:39.7]}
8... Bb7 {[%clk 0:02:43.7]} 9. O-O {[%clk 0:02:37.5]} 9... a6 {[%clk 0:02:41.3]}
10. Bf3 {[%clk 0:02:37.4]} 10... Nd5 {[%clk 0:02:38.4]} 11. Ne4 {[%clk
0:02:34.6]} 11... O-O {[%clk 0:02:29.8]} 12. Nc5 {[%clk 0:02:31]} 12... Qe7
{[%clk 0:01:49]} 13. e4 {[%clk 0:02:08.1]} 13... Nf6 {[%clk 0:01:30.5]} 14. Nxb7
{[%clk 0:02:04.1]} 14... Qxb7 {[%clk 0:01:28.8]} 15. d5 {[%clk 0:02:02.2]} 15...
cxd5 {[%clk 0:01:22.1]} 16. exd5 {[%clk 0:01:59.9]} 16... Nxd5 {[%clk 0:01:19]}
17. Qd4 {[%clk 0:01:45.9]} 17... Nd7 {[%clk 0:01:08.9]} 18. Ng4 {[%clk
0:01:41.6]} 18... Bc5 {[%clk 0:00:56.7]} 19. Qe4 {[%clk 0:01:35.5]} 19... Rad8
{[%clk 0:00:34.8]} 20. Bg5 {[%clk 0:01:31.3]} 20... Rb8 {[%clk 0:00:28.6]} 21.
axb5 {[%clk 0:01:12.8]} 21... axb5 {[%clk 0:00:28]} 22. Qe2 {[%clk 0:00:58.1]}
22... Qc6 {[%clk 0:00:24.1]} 23. Rad1 {[%clk 0:00:54.2]} 23... f5 {[%clk
0:00:22]} 24. Ne5 {[%clk 0:00:47.4]} 24... Nxe5 {[%clk 0:00:21.6]} 25. Qxe5
{[%clk 0:00:47.6]} 25... Kh8 {[%clk 0:00:18.7]} 26. Bxd5 {[%clk 0:00:43.3]}
26... exd5 {[%clk 0:00:18.7]} 27. Qxd5 {[%clk 0:00:43.1]} 27... Qxd5 {[%clk
0:00:17.2]} 28. Rxd5 {[%clk 0:00:44]} 28... Rbc8 {[%clk 0:00:17.2]} 29. Rc1
{[%clk 0:00:41.3]} 29... h6 {[%clk 0:00:17.4]} 30. Bf4 {[%clk 0:00:41.1]} 30...
Kh7 {[%clk 0:00:16.5]} 31. h4 {[%clk 0:00:40.7]} 31... Kg6 {[%clk 0:00:15.4]}
32. Rcd1 {[%clk 0:00:40.3]} 32... Rfe8 {[%clk 0:00:14.6]} 33. R1d2 {[%clk
0:00:38.6]} 33... Re4 {[%clk 0:00:14.2]} 34. g3 {[%clk 0:00:38.1]} 34... Kf6
{[%clk 0:00:13.5]} 35. Kg2 {[%clk 0:00:38]} 35... Rc6 {[%clk 0:00:13.3]} 36. Rd8
{[%clk 0:00:37.1]} 36... g5 {[%clk 0:00:13.3]} 37. hxg5+ {[%clk 0:00:36.1]}
37... hxg5 {[%clk 0:00:13.7]} 38. Bb8 {[%clk 0:00:35.7]} 38... f4 {[%clk
0:00:13.4]} 39. Kf3 {[%clk 0:00:35.6]} 39... g4+ {[%clk 0:00:12.6]} 40. Kxg4
{[%clk 0:00:35.4]} 40... fxg3+ {[%clk 0:00:12.7]} 41. Kf3 {[%clk 0:00:35.9]}
41... Ree6 {[%clk 0:00:12.3]} 42. fxg3 {[%clk 0:00:35.8]} 42... Re3+ {[%clk
0:00:11.7]} 43. Kg2 {[%clk 0:00:36.3]} 43... Rb3 {[%clk 0:00:11.9]} 44. Bf4
{[%clk 0:00:34.1]} 44... b4 {[%clk 0:00:11.9]} 45. Re2 {[%clk 0:00:34.1]} 45...
c3 {[%clk 0:00:11.8]} 46. bxc3 {[%clk 0:00:34]} 46... bxc3 {[%clk 0:00:11.9]}
47. Rd3 {[%clk 0:00:34]} 47... Kf5 {[%clk 0:00:10.1]} 48. Rf3 {[%clk 0:00:33.9]}
48... Kg6 {[%clk 0:00:09.7]} 49. Bc1 {[%clk 0:00:32.1]} 49... Bd4 {[%clk
0:00:09.3]} 50. Re4 {[%clk 0:00:31.8]} 50... Bf6 {[%clk 0:00:09.3]} 51. Rg4+
{[%clk 0:00:31.9]} 51... Kf7 {[%clk 0:00:09.4]} 52. Bg5 {[%clk 0:00:31.5]} 52...
c2 {[%clk 0:00:08.7]} 53. Bc1 {[%clk 0:00:29.2]} 53... Rb1 {[%clk 0:00:07.5]}
54. Rf1 {[%clk 0:00:29]} 54... Rxc1 {[%clk 0:00:05.8]} 55. Rxc1 {[%clk
0:00:28.7]} 55... Bb2 {[%clk 0:00:05.9]} 56. Rf4+ {[%clk 0:00:29.1]} 56... Kg6
{[%clk 0:00:04.7]} 57. Rff1 {[%clk 0:00:30]} 57... Bxc1 {[%clk 0:00:03.3]} 58.
Rxc1 {[%clk 0:00:29.6]} 58... Kf5 {[%clk 0:00:03.7]} 59. Kf3 {[%clk 0:00:30]}
59... Rc3+ {[%clk 0:00:03.2]} 60. Ke2 {[%clk 0:00:30.4]} 60... Ke4 {[%clk
0:00:03.2]} 61. Kd2 {[%clk 0:00:30]} 61... Kd4 {[%clk 0:00:01.9]} 62. Rxc2
{[%clk 0:00:28]} 62... Rxg3 {[%clk 0:00:02]} 63. Rc8 {[%clk 0:00:27.6]} 63...
Rg2+ {[%clk 0:00:02.4]} 64. Ke1 {[%clk 0:00:28.2]} 64... Ke3 {[%clk 0:00:02.6]}
65. Re8+ {[%clk 0:00:28.3]} 65... Kd3 {[%clk 0:00:03]} 66. Kf1 {[%clk
0:00:29.2]} 66... Rc2 {[%clk 0:00:03]} 67. Rd8+ {[%clk 0:00:28.6]} 67... Kc3
{[%clk 0:00:03.4]} 68. Rh8 {[%clk 0:00:29.3]} 68... Kd3 {[%clk 0:00:03.8]} 69.
Ke1 {[%clk 0:00:29.7]} 69... Ke3 {[%clk 0:00:04]} 70. Rh3+ {[%clk 0:00:29.5]}
70... Ke4 {[%clk 0:00:04.2]} 71. Kd1 {[%clk 0:00:30.1]} 71... Ra2 {[%clk
0:00:04.7]} 72. Rb3 {[%clk 0:00:29.5]} 72... Kd4 {[%clk 0:00:04.8]} 73. Kc1
{[%clk 0:00:29.6]} 73... Kc4 {[%clk 0:00:05.1]} 74. Rg3 {[%clk 0:00:30.1]} 74...
Re2 {[%clk 0:00:04.8]} 75. Kd1 {[%clk 0:00:30.2]} 75... Rf2 {[%clk 0:00:05]} 76.
Rg4+ {[%clk 0:00:30.3]} 76... Kd3 {[%clk 0:00:04.8]} 77. Ke1 {[%clk 0:00:31.2]}
77... Rh2 {[%clk 0:00:04.8]} 78. Rg3+ {[%clk 0:00:31.4]} 78... Ke4 {[%clk
0:00:05]} 1/2-1/2